bitfinex/quotes_ETHUSD_20250318
["timestamp","ask_amount","ask_price","bid_price","bid_amount"]
[1742258373117,5.1795,1930.7,1930.4,0.7717]
[1742258373346,5.1795,1930.7,1930.4,1.421909]
[1742258374318,5.1795,1930.7,1930.4,6.602149]
[1742258376056,5.17921,1930.8,1930.5,0.55]
[1742258376240,5.17921,1930.8,1930.5,5.72996]
[1742258376965,10.35861,1930.8,1930.5,0.55]
[1742258377256,10.35861,1930.8,1930.5,1.2652019]
[1742258378652,5.17948,1930.7,1930.5,1.2652019]
[1742258379252,5.17921,1930.8,1930.5,1.2652019]
[1742258379554,10.35861,1930.8,1930.5,1.2652019]
[1742258380851,5.17921,1930.8,1930.5,1.2652019]
[1742258382855,10.35859,1930.8,1930.5,1.2652019]
[1742258383960,5.17921,1930.8,1930.5,1.2652019]
[1742258384163,5.17921,1930.8,1930.5,6.4451619]
[1742258384450,5.17849,1931.1,1930.7,6.51044]
[1742258384626,5.17894,1930.9,1930.7,1.3312]
[1742258389075,5.17869,1931.0,1930.7,1.3312]
[1742258389447,10.35755,1931.0,1930.7,1.3312]
[1742258389662,5.17897,1930.9,1930.7,1.3312]
[1742258391471,10.35811,1930.9,1930.7,1.3312]
[1742258391672,10.35811,1930.9,1930.7,2.11719283]
[1742258392152,5.17897,1930.9,1930.7,2.11719283]
[1742258392484,5.1792,1930.8,1930.7,1.33599283]
[1742258392689,5.17946,1930.7,1930.6,6.26491619]
[1742258392981,5.17946,1930.7,1930.6,6.03451619]
[1742258393285,5.1792,1930.8,1930.6,6.03451619]
[1742258393986,5.17893,1930.9,1930.6,6.03451619]
[1742258394287,5.17893,1930.9,1930.6,6.82311619]
[1742258394459,5.17868,1931.0,1930.7,0.68231162]
[1742258394784,5.17846,1931.1,1930.8,1.3386]
[1742258395690,10.35663,1931.2,1930.8,6.51769]
[1742258397777,5.17829,1931.2,1930.8,6.51769]
[1742258398303,5.17829,1931.2,1930.8,7.55991895]
[1742258398507,13.99856193,1931.3,1931.0,0.55]
[1742258398790,13.99856193,1931.3,1931.0,1.3755]
[1742258398960,5.17786,1931.3,1931.0,6.2145]
[1742258399597,5.17786,1931.3,1931.0,11.39314]
[1742258399766,5.17764,1931.4,1931.0,11.39314]
[1742258399957,5.17764,1931.4,1931.1,1.139314]
[1742258400789,5.17764,1931.4,1931.2,0.826]
[1742258401090,5.17696,1931.7,1931.3,0.55]
[1742258401390,5.17744,1931.5,1931.3,0.55]
[1742258401584,5.17759,1931.4,1931.3,0.55]
[1742258402188,5.17759,1931.4,1931.1,1.139314]
[1742258402388,5.17759,1931.4,1931.2,4.839]
[1742258402389,5.17799,1931.3,1931.2,4.839]
[1742258403383,10.35538,1931.4,1931.2,4.839]
[1742258403572,5.17759,1931.4,1931.2,4.839]
[1742258403895,10.35538,1931.4,1931.2,4.839]
[1742258404677,5.17759,1931.4,1931.2,4.839]
[1742258405499,5.17785,1931.3,1931.2,4.839]
[1742258409497,5.17812,1931.2,1931.1,0.55]
[1742258409685,5.17812,1931.2,1931.1,5.388]
[1742258409892,5.17812,1931.2,1930.8,1.84332895]
[1742258409893,5.17857,1931.1,1930.8,1.84332895]
[1742258410204,5.17868,1931.0,1930.9,4.838]
[1742258410370,5.17868,1931.0,1930.9,5.388]
[1742258412185,5.17868,1931.0,1930.6,6.9268]
[1742258412382,5.17904,1930.9,1930.7,5.388]
[1742258412784,5.1792,1930.8,1930.7,5.388]
[1742258413083,5.17904,1930.9,1930.7,5.388]
[1742258413278,5.17873,1931.0,1930.7,5.388]
[1742258414171,10.3576,1931.0,1930.7,5.388]
[1742258414369,10.3576,1931.0,1930.7,7.91469769]
[1742258415105,10.3576,1931.0,1930.7,7.92019769]
[1742258415282,10.3576,1931.0,1930.7,7.4352594]
[1742258415897,5.17893,1930.9,1930.7,7.4352594]
[1742258416205,5.17893,1930.9,1930.7,5.3935]
[1742258416602,10.35811,1930.9,1930.7,5.3935]
[1742258416791,10.35804,1930.9,1930.7,5.3935]
[1742258417500,5.1792,1930.8,1930.7,5.3935]
[1742258417682,5.1792,1930.8,1930.7,4.8435]
[1742258418304,5.1792,1930.8,1930.7,0.0055]
[1742258419308,5.9338,1930.8,1930.7,0.0055]
[1742258419473,9.57643193,1930.8,1930.7,0.0055]
[1742258419801,11.05196812,1930.8,1930.7,0.0055]
[1742258424404,8.82183193,1930.8,1930.7,0.0055]
[1742258424612,5.1792,1930.8,1930.7,0.0055]
[1742258425108,0.8177,1931.1,1930.7,0.5555]
[1742258425299,5.17879,1931.0,1930.8,0.8062]
[1742258426100,10.35698,1931.1,1930.8,5.6452]
[1742258426403,5.1784,1931.1,1930.9,0.55]
[1742258427012,5.17866,1931.0,1930.9,0.55]
[1742258428311,5.17893,1930.9,1930.7,4.8445]
[1742258428512,5.1792,1930.8,1930.7,4.8445]
[1742258429415,5.17897,1930.9,1930.7,4.8445]
[1742258429614,5.17842,1931.1,1930.9,0.7995]
[1742258431000,10.357,1931.1,1930.9,0.7995]
[1742258432424,5.17866,1931.0,1930.8,0.48445]
[1742258432728,5.17915,1930.9,1930.8,0.55]
[1742258439200,5.1792,1930.8,1930.7,0.0055]
[1742258442731,7.33799819,1930.8,1930.7,0.0055]
[1742258448541,5.9379,1930.8,1930.7,0.0055]
[1742258450742,5.1792,1930.8,1930.7,0.0055]
[1742258461184,7.36047985,1930.8,1930.7,0.0055]
[1742258463138,10.2927597,1930.8,1930.7,0.0055]
[1742258463472,13.2927597,1930.8,1930.7,0.0055]
[1742258463649,15.13995067,1930.8,1930.7,0.0055]
[1742258465183,14.41433048,1930.8,1930.7,0.0055]
[1742258466490,20.43433048,1930.8,1930.7,0.0055]
[1742258472289,20.43433048,1930.8,1930.7,1e-05]
[1742258473083,21.05638639,1930.8,1930.7,1e-05]
[1742258473361,5.18161,1929.9,1929.8,5.32176861]
[1742258474178,5.18161,1929.9,1929.8,0.48176861]
[1742258474764,5.18188,1929.8,1929.7,0.8007]
[1742258474996,5.18161,1929.9,1929.7,0.8007]
[1742258474997,10.36346,1929.9,1929.7,0.8007]
[1742258475363,5.18188,1929.8,1929.7,0.8007]
[1742258475562,5.18188,1929.8,1929.7,1.36477]
[1742258477399,5.18133,1930.1,1929.8,1.3204]
[1742258477597,5.18133,1930.1,1929.9,0.7704]
[1742258478379,5.18092,1930.2,1930.1,0.7837]
[1742258480102,8.81785951,1930.2,1930.1,0.7837]
[1742258480481,5.18107,1930.1,1930.0,4.84]
[1742258482615,5.18134,1930.0,1929.8,4.84]
[1742258482776,8.81827951,1930.0,1929.8,4.84]
[1742258483702,5.18161,1929.9,1929.8,4.84]
[1742258483903,5.18188,1929.8,1929.7,0.8274]
[1742258486070,5.18161,1929.9,1929.7,0.8274]
[1742258486275,5.18188,1929.8,1929.7,0.8274]
[1742258491312,5.18215,1929.7,1929.6,5.6334]
[1742258493313,5.18188,1929.8,1929.6,5.6334]
[1742258493608,10.36396,1929.8,1929.6,5.6334]
[1742258493806,5.18215,1929.7,1929.6,5.6334]
[1742258497909,5.18193,1929.8,1929.6,5.6334]
[1742258501018,10.36403,1929.8,1929.6,5.6334]
[1742258504419,5.18193,1929.8,1929.6,5.6334]
[1742258504587,10.36401,1929.8,1929.6,5.6334]
[1742258505224,5.18193,1929.8,1929.6,5.6334]
[1742258505428,5.18193,1929.8,1929.6,6.30207038]
[1742258506505,10.36399,1929.8,1929.6,5.6334]
[1742258508723,10.36399,1929.8,1929.6,4.84]
[1742258508912,5.18215,1929.7,1929.6,4.84]
[1742258509540,5.18215,1929.7,1929.5,0.48265384]
[1742258509827,5.18215,1929.7,1929.6,4.84]
[1742258509996,5.18215,1929.7,1929.6,5.32636622]
[1742258510598,5.18215,1929.7,1929.6,5.80902006]
[1742258511817,5.18215,1929.7,1929.6,5.32636622]
[1742258512219,7.36533232,1929.7,1929.6,5.32636622]
[1742258512916,5.18215,1929.7,1929.6,5.32636622]
[1742258521904,5.18215,1929.7,1929.6,5.8094591]
[1742258525915,7.36533232,1929.7,1929.6,5.8094591]
[1742258526234,8.69781855,1929.7,1929.6,5.8094591]
[1742258526611,8.69781855,1929.7,1929.6,0.9694591]
[1742258527045,9.47541855,1929.7,1929.6,0.9694591]
[1742258527246,9.47541855,1929.7,1929.6,0.48636622]
[1742258527451,5.96028,1929.5,1929.4,0.48309288]
[1742258527647,9.25774232,1929.5,1929.4,0.48309288]
[1742258528163,8.48014232,1929.5,1929.4,0.48309288]
[1742258528370,7.36586232,1929.5,1929.4,0.48309288]
[1742258528733,12.54873232,1929.5,1929.2,5.6706]
[1742258528935,10.36555,1929.5,1929.2,5.6706]
[1742258529114,5.18304,1929.4,1929.2,5.6706]
[1742258529659,5.18304,1929.4,1929.2,5.6716]
[1742258531946,5.18304,1929.4,1929.2,0.8306]
[1742258532123,5.18304,1929.4,1929.3,4.841]
[1742258534727,5.18342,1929.3,1929.1,0.55]
[1742258534933,5.18342,1929.3,1929.2,4.841]
[1742258535653,5.18342,1929.3,1929.0,1.29434937]
[1742258535861,5.18342,1929.3,1929.1,4.841]
[1742258536461,5.18355,1929.2,1929.1,4.841]
[1742258536648,5.18355,1929.2,1929.0,0.8122]
[1742258536824,5.18355,1929.2,1929.1,4.841]
[1742258537026,5.18349,1929.2,1929.1,4.841]
[1742258537531,5.1833,1929.3,1929.1,4.841]
[1742258537837,10.36673,1929.3,1929.1,4.841]
[1742258539259,5.18349,1929.2,1929.1,4.841]
[1742258541528,5.1833,1929.3,1929.1,4.841]
[1742258543680,5.18297,1929.4,1929.1,4.841]
[1742258543883,5.18251,1929.6,1929.2,3.00878232]
[1742258544087,5.18251,1929.6,1929.3,5.18321]
[1742258545557,10.36512,1929.6,1929.2,8.19204232]
[1742258545756,5.18222,1929.7,1929.3,5.73307]
[1742258545987,5.18222,1929.7,1929.4,0.832]
[1742258546284,5.18222,1929.7,1929.5,4.841]
[1742258548387,7.36540232,1929.7,1929.5,4.841]
[1742258548604,5.18242,1929.6,1929.5,4.841]
[1742258550590,7.36560232,1929.6,1929.5,4.841]
[1742258550756,10.3657,1929.5,1929.4,4.841]
[1742258550961,5.18285,1929.5,1929.4,4.841]
[1742258553891,5.18285,1929.5,1929.2,0.7659]
[1742258554100,5.18313,1929.4,1929.3,4.84]
[1742258554893,10.36627,1929.4,1929.1,0.55]
[1742258555215,5.18337,1929.3,1929.1,4.84]
[1742258556018,5.18337,1929.3,1929.1,5.3224792]
[1742258557420,5.18337,1929.3,1929.1,4.84]
[1742258557718,5.1825,1929.6,1929.2,5.94928]
[1742258557884,10.36509,1929.6,1929.2,5.94928]
[1742258558085,5.1825,1929.6,1929.2,5.94928]
[1742258558620,10.3651,1929.6,1929.2,6.43182734]
[1742258559887,10.3651,1929.6,1929.2,5.94928]
[1742258560083,5.18217,1929.7,1929.3,5.73318]
[1742258560287,5.18217,1929.7,1929.4,0.8053]
[1742258560488,5.18217,1929.7,1929.4,5.98816]
[1742258560688,5.18202,1929.8,1929.4,5.98816]
[1742258560901,10.36409,1929.8,1929.4,5.98816]
[1742258561100,12.54727232,1929.8,1929.4,5.98816]
[1742258562015,5.18217,1929.7,1929.4,5.98816]
[1742258562916,5.18217,1929.7,1929.4,0.8053]
[1742258563434,5.18246,1929.6,1929.4,0.8053]
[1742258563924,5.18217,1929.7,1929.4,0.8053]
[1742258564219,5.18257,1929.6,1929.4,0.8053]
[1742258566326,5.18257,1929.6,1929.3,0.55]
[1742258567121,5.18269,1929.5,1929.2,6.00634]
[1742258567327,5.18269,1929.5,1929.4,4.84]
[1742258567529,5.18269,1929.5,1929.2,6.00634]
[1742258567687,5.18269,1929.5,1929.3,4.84]
[1742258570397,10.3656,1929.5,1929.3,4.84]
[1742258570694,5.18269,1929.5,1929.3,4.84]
[1742258570893,5.18269,1929.5,1929.2,5.663]
[1742258571095,5.18269,1929.5,1929.2,4.84]
[1742258571291,0.7804,1929.8,1929.3,1.3031]
[1742258571601,5.18283,1929.5,1929.2,4.84]
[1742258571806,5.18299,1929.4,1929.2,4.84]
[1742258573337,10.36614,1929.4,1929.2,4.84]
[1742258573638,5.18299,1929.4,1929.2,4.84]
[1742258574239,5.18322,1929.3,1929.2,4.84]
[1742258574931,5.18322,1929.3,1929.1,0.55]
[1742258575119,5.18299,1929.4,1929.1,5.39]
[1742258575329,5.18332,1929.3,1929.1,5.39]
[1742258576935,5.18332,1929.3,1929.1,5.8726102]
[1742258577432,10.36672,1929.3,1929.1,5.8726102]
[1742258577635,5.18332,1929.3,1929.1,5.8726102]
[1742258578132,5.18332,1929.3,1929.1,5.39]
[1742258578356,2.18318232,1929.2,1929.0,0.4826102]
[1742258578504,7.36694232,1929.1,1929.0,0.4826102]
[1742258578832,5.18376,1929.1,1929.0,0.4826102]
[1742258579340,7.36676232,1929.2,1929.0,0.4826102]
[1742258579639,5.18358,1929.2,1928.9,0.7752]
[1742258580735,2.99198232,1929.5,1929.0,5.73392]
[1742258581051,5.18325,1929.3,1929.0,5.73392]
[1742258581253,5.18325,1929.3,1929.0,0.55]
[1742258581423,12.54984232,1929.3,1929.0,0.55]
[1742258581627,10.36666,1929.3,1929.0,0.55]
[1742258581829,5.18325,1929.3,1929.0,0.55]
[1742258582439,5.18325,1929.3,1929.0,5.734]
[1742258582840,5.18325,1929.3,1929.0,0.55]
[1742258583255,5.18337,1929.3,1929.0,0.55]
[1742258583651,10.36681,1929.3,1929.0,0.55]
[1742258584030,5.18337,1929.3,1929.0,0.55]
[1742258584554,10.36679,1929.3,1929.0,0.55]
[1742258584925,2.48238055,1929.4,1929.0,0.55]
[1742258584926,5.18358,1929.2,1929.0,0.55]
[1742258585322,10.36725,1929.2,1929.0,0.55]
[1742258585522,5.18376,1929.1,1929.0,0.55]
[1742258586360,5.18358,1929.2,1929.0,0.55]
[1742258586954,5.18377,1929.1,1928.9,0.7752]
[1742258587334,5.18358,1929.2,1928.9,0.7752]
[1742258587517,5.18358,1929.2,1929.0,4.84]
[1742258587722,5.18358,1929.2,1928.9,0.7752]
[1742258587922,5.18358,1929.2,1929.0,4.84]
[1742258588155,5.18358,1929.2,1928.9,0.7752]
[1742258588654,5.18324,1929.3,1929.0,4.84]
[1742258589759,7.36614232,1929.4,1929.1,0.55]
[1742258589923,5.18351,1929.2,1929.0,4.84]
[1742258591358,5.18331,1929.3,1929.0,4.84]
[1742258593555,5.18376,1929.1,1929.0,5.39]
[1742258593858,5.18357,1929.2,1929.0,5.39]
[1742258594526,10.36725,1929.2,1929.0,4.84]
[1742258594727,11.70042323,1929.2,1929.0,4.84]
[1742258595128,6.51674323,1929.2,1928.9,6.09744518]
[1742258595353,5.18357,1929.2,1928.9,6.09744518]
[1742258599335,5.18357,1929.2,1928.9,5.6152]
[1742258604570,5.18357,1929.2,1929.0,0.48296624]
[1742258604946,11.14795,1929.3,1929.0,0.48296624]
[1742258605568,2.98538232,1929.1,1929.0,0.48296624]
[1742258605865,5.18441,1928.9,1928.5,5.94356]
[1742258606068,5.18441,1928.9,1928.6,5.39]
[1742258606285,5.18458,1928.8,1928.6,5.39]
[1742258606568,5.18458,1928.8,1928.6,4.84]
[1742258606943,5.18574,1928.4,1928.2,0.02]
[1742258607145,7.36909232,1928.3,1928.2,0.02]
[1742258607333,5.704314,1928.4,1928.2,0.02]
[1742258607334,5.18574,1928.4,1928.2,0.02]
[1742258607739,0.7636,1928.7,1928.2,5.6449]
[1742258608032,13.31567232,1928.9,1928.5,5.97016]
[1742258608278,7.36756232,1928.9,1928.5,5.97016]
[1742258608457,7.36756232,1928.9,1928.5,7.140727]
[1742258608950,7.36724232,1929.0,1928.6,5.73501]
[1742258609145,5.18406,1929.0,1928.6,5.73501]
[1742258609350,5.18406,1929.0,1928.6,10.57501]
[1742258610041,10.3683,1929.0,1928.6,10.57501]
[1742258610254,10.3683,1929.0,1928.6,12.39482753]
[1742258610478,5.18406,1929.0,1928.6,12.39482753]
[1742258610858,5.98936,1929.1,1928.6,7.20981753]
[1742258611059,8.82585186,1929.2,1928.8,5.96683]
[1742258611266,5.18352,1929.2,1928.8,5.96683]
[1742258611454,5.18352,1929.2,1928.8,7.081972]
[1742258611639,5.18352,1929.2,1928.9,0.55]
[1742258611844,0.7656,1929.5,1929.1,0.55]
[1742258612068,11.20258,1929.6,1929.2,5.95929]
[1742258612273,5.18258,1929.6,1929.2,5.95929]
[1742258612475,10.36516,1929.6,1929.2,5.95929]
[1742258612679,5.18258,1929.6,1929.2,5.95929]
[1742258613104,5.18197,1929.8,1929.4,5.18277]
[1742258613248,0.8307,1929.9,1929.6,0.55]
[1742258613453,5.18161,1929.9,1929.6,1.3427]
[1742258613666,5.1815,1930.0,1929.6,1.3427]
[1742258613881,6.01168,1930.2,1929.7,5.18195]
[1742258614180,7.86064119,1930.2,1929.8,0.55]
[1742258614481,5.1811,1930.1,1929.9,4.84]
[1742258615143,5.18134,1930.0,1929.9,4.84]
[1742258615648,7.86051119,1930.2,1929.9,4.84]
[1742258615980,5.18127,1930.1,1929.9,4.84]
[1742258616158,5.96736712,1930.1,1929.9,4.84]
[1742258616772,11.14863712,1930.1,1929.9,4.84]
[1742258616982,3.64233186,1930.3,1929.9,4.84]
[1742258617184,5.18032,1930.4,1930.0,1.3427]
[1742258617487,8.82237186,1930.5,1930.1,5.18096]
[1742258617789,10.60567805,1930.5,1930.1,5.18096]
[1742258618289,15.78591805,1930.5,1930.0,6.52386]
[1742258618589,15.78591805,1930.5,1930.0,11.7051]
[1742258618782,15.78591805,1930.5,1930.0,6.52386]
[1742258619188,15.78580805,1930.5,1930.0,6.52383]
[1742258619499,5.18033,1930.4,1930.0,6.52383]
[1742258620269,5.18096,1930.2,1930.0,0.55]
[1742258620462,5.18096,1930.2,1930.0,5.389]
[1742258620874,10.36201,1930.2,1930.0,4.839]
[1742258621085,5.18107,1930.1,1930.0,4.839]
[1742258621285,8.82293186,1930.3,1930.0,4.839]
[1742258621512,6.58094019,1930.3,1930.0,4.839]
[1742258621885,5.18097,1930.2,1930.0,4.839]
[1742258622599,5.18107,1930.1,1930.0,4.839]
[1742258622793,5.18107,1930.1,1929.8,0.55]
[1742258622975,5.18107,1930.1,1929.9,4.838]
[1742258623168,5.18107,1930.1,1929.8,0.55]
[1742258623368,5.18137,1930.0,1929.8,5.388]
[1742258623587,5.18107,1930.1,1929.8,5.388]
[1742258623794,5.18107,1930.1,1929.8,0.55]
[1742258624099,5.18107,1930.1,1929.8,5.388]
[1742258624399,10.36237,1930.1,1929.8,5.388]
[1742258624901,5.18107,1930.1,1929.8,5.388]
[1742258625468,5.18136,1930.0,1929.8,5.388]
[1742258626697,5.18107,1930.1,1929.8,5.388]
[1742258627891,5.18107,1930.1,1929.8,10.56987]
[1742258628091,5.18107,1930.1,1929.8,5.388]
[1742258628605,5.18148,1930.0,1929.8,5.388]
[1742258628899,1.036255,1930.0,1929.5,5.99302]
[1742258629103,5.182,1929.8,1929.6,5.388]
[1742258629303,5.182,1929.8,1929.6,0.55]
[1742258629472,5.182,1929.8,1929.6,5.388]
[1742258631704,5.18168,1929.9,1929.6,5.388]
[1742258633237,10.36355,1929.9,1929.6,5.388]
[1742258633394,5.1819,1929.8,1929.6,5.388]
[1742258634186,5.1819,1929.8,1929.6,4.838]
[1742258634187,7.039158,1929.8,1929.6,4.838]
[1742258634508,5.18215,1929.7,1929.6,4.838]
[1742258635089,5.18251,1929.6,1929.3,0.7725]
[1742258635298,5.18251,1929.6,1929.5,4.838]
[1742258636090,5.18215,1929.7,1929.5,4.838]
[1742258636483,7.039158,1929.8,1929.5,4.838]
[1742258636987,6.218258,1929.8,1929.5,4.838]
[1742258637313,5.18216,1929.7,1929.5,4.838]
[1742258637513,10.36451,1929.7,1929.5,4.838]
[1742258637698,5.18295,1929.4,1929.2,0.55]
[1742258637891,5.18295,1929.4,1929.3,4.838]
[1742258638093,5.18295,1929.4,1929.2,0.55]
[1742258638291,5.18295,1929.4,1929.2,5.388]
[1742258638891,5.1829,1929.5,1929.2,5.388]
[1742258639896,5.18312,1929.4,1929.2,5.388]
[1742258640226,5.18309,1929.4,1929.2,4.838]
[1742258641333,5.18322,1929.3,1929.2,4.838]
[1742258641908,10.36671,1929.3,1929.0,0.55]
[1742258642116,5.18372,1929.2,1929.1,4.838]
[1742258643135,5.18386,1929.1,1929.0,4.839]
[1742258643432,5.18413,1929.0,1928.8,4.839]
[1742258644416,5.1843,1928.9,1928.7,0.48134941]
[1742258644630,5.18457,1928.8,1928.7,0.48134941]
[1742258644804,5.18457,1928.8,1928.6,4.839]
[1742258648632,5.18484,1928.7,1928.4,0.55]
[1742258648835,5.18484,1928.7,1928.5,4.839]
[1742258648836,5.18488,1928.7,1928.5,4.839]
[1742258649535,5.18525,1928.6,1928.3,1.83710738]
[1742258649751,5.18525,1928.6,1928.3,5.89170738]
[1742258649752,5.18564,1928.4,1928.3,5.89170738]
[1742258650747,5.18564,1928.4,1928.2,4.86]
[1742258651303,10.37149,1928.4,1928.2,4.86]
[1742258651645,5.18564,1928.4,1928.2,4.86]
[1742258651936,5.18564,1928.4,1928.2,0.02]
[1742258652448,10.37149,1928.4,1928.2,0.02]
[1742258652622,9.65892186,1928.5,1928.2,0.02]
[1742258652826,5.18575,1928.4,1928.2,0.02]
[1742258653039,9.65892186,1928.5,1928.2,0.02]
[1742258653239,14.84440186,1928.5,1928.2,0.02]
[1742258653422,5.18569,1928.4,1928.2,0.02]
[1742258654636,6.67015119,1928.4,1928.2,0.02]
[1742258655238,5.18591,1928.3,1928.2,0.02]
[1742258655448,8.82824186,1928.3,1928.2,0.02]
[1742258655750,9.63734186,1928.3,1928.2,0.02]
[1742258656517,12.63734186,1928.3,1928.2,0.02]
[1742258656715,14.56809116,1928.3,1928.2,0.02]
[1742258656924,0.8091,1927.7,1927.1,0.61065]
[1742258657141,5.18813,1927.5,1927.1,5.79968]
[1742258657525,14.01830186,1927.6,1927.1,10.98864]
[1742258657845,5.18814,1927.5,1927.1,5.79961]
[1742258658555,5.18814,1927.5,1927.2,0.55]
[1742258659151,10.12468273,1927.6,1927.2,5.7388]
[1742258659320,15.31269273,1927.6,1927.2,5.7388]
[1742258659821,15.31267273,1927.6,1927.2,5.7388]
[1742258660949,15.31259273,1927.6,1927.2,5.7388]
[1742258661152,3.0,1927.7,1927.3,6.00125]
[1742258661358,3.0,1927.7,1927.4,10.03631]
[1742258661553,3.0,1927.8,1927.5,5.18795]
[1742258662019,5.18701,1927.9,1927.5,10.3759]
[1742258662227,8.82905186,1928.0,1927.7,0.8129]
[1742258662426,10.61040405,1928.0,1927.7,0.8129]
[1742258663353,15.79731405,1928.0,1927.7,0.8129]
[1742258663845,5.18705,1927.9,1927.7,0.8129]
[1742258664448,10.61040405,1928.0,1927.7,0.8129]
[1742258664755,3.64233186,1928.0,1927.7,0.8129]
[1742258665066,8.18651,1928.1,1927.7,6.00033]
[1742258666154,8.18651,1928.1,1927.7,11.18768]
[1742258666358,8.18651,1928.1,1927.7,6.00025]
[1742258666668,8.18651,1928.1,1927.7,11.18765]
[1742258666872,8.18651,1928.1,1927.7,6.00025]
[1742258667037,8.18651,1928.1,1927.7,11.18761]
[1742258667452,8.18651,1928.1,1927.8,4.85]
[1742258668533,7.97960086,1928.1,1927.8,4.85]
[1742258668859,11.82880186,1928.1,1927.8,4.85]
[1742258669043,3.0,1928.1,1927.8,10.03709]
[1742258671466,5.18712,1927.9,1927.7,0.8129]
[1742258671627,5.18712,1927.9,1927.7,5.6619]
[1742258671831,5.18712,1927.9,1927.7,4.849]
[1742258672233,6.224507,1927.9,1927.7,4.849]
[1742258672534,5.18746,1927.8,1927.5,5.6834]
[1742258672966,5.18746,1927.8,1927.5,10.87146]
[1742258673467,6.981657,1927.9,1927.5,5.6834]
[1742258673657,5.18742,1927.8,1927.5,5.6834]
[1742258673864,6.4043277,1927.8,1927.5,5.6834]
[1742258674248,5.18742,1927.8,1927.5,5.6834]
[1742258675266,10.37493,1927.8,1927.5,5.6834]
[1742258675483,5.18762,1927.7,1927.5,5.6834]
[1742258677169,5.18762,1927.7,1927.5,4.851]
[1742258677370,5.18762,1927.7,1927.4,0.55]
[1742258677572,5.1878,1927.6,1927.4,4.848]
[1742258677772,5.706382,1927.7,1927.4,4.848]
[1742258677938,10.894102,1927.7,1927.4,4.848]
[1742258678138,5.18781,1927.6,1927.4,4.848]
[1742258679181,10.37578,1927.6,1927.4,4.848]
[1742258679345,6.2772642,1927.6,1927.4,4.848]
[1742258680569,5.18734,1927.8,1927.4,10.03632]
[1742258681590,10.37419,1927.9,1927.6,0.8248]
[1742258681773,5.18734,1927.8,1927.5,0.55]
[1742258681957,5.18752,1927.7,1927.4,5.6728]
[1742258682356,5.18734,1927.8,1927.4,10.86098]
[1742258682555,10.37478,1927.8,1927.4,10.86098]
[1742258683163,10.37528,1927.7,1927.4,5.6728]
[1742258683363,10.37528,1927.7,1927.4,6.15468133]
[1742258683566,10.37577,1927.6,1927.4,6.15468133]
[1742258683850,5.18779,1927.6,1927.4,5.32988133]
[1742258684070,5.18779,1927.6,1927.4,0.48188133]
[1742258684477,6.307268,1927.7,1927.4,0.48188133]
[1742258684660,6.307268,1927.7,1927.3,10.52148133]
[1742258685578,5.18754,1927.7,1927.4,0.7762]
[1742258686847,11.19669,1927.8,1927.4,5.96453]
[1742258687051,6.00926,1927.8,1927.4,0.7762]
[1742258687249,5.18762,1927.7,1927.4,0.7762]
[1742258687682,6.00926,1927.8,1927.4,0.7762]
[1742258687861,6.00926,1927.8,1927.4,5.96441]
[1742258688062,11.19671,1927.8,1927.4,5.96441]
[1742258688288,10.37471,1927.8,1927.4,5.96441]
[1742258688447,5.18726,1927.8,1927.4,5.96441]
[1742258688863,5.18726,1927.8,1927.5,0.55]
[1742258690786,3.0,1927.8,1927.5,0.55]
[1742258690974,3.0,1927.8,1927.5,5.73805]
[1742258691169,5.18702,1927.9,1927.5,12.096185]
[1742258691368,3.0,1927.9,1927.6,6.01397]
[1742258691984,8.18701,1927.9,1927.6,0.8262]
[1742258693596,5.18701,1927.9,1927.6,0.8262]
[1742258694491,5.18708,1927.9,1927.6,0.8262]
[1742258694697,5.18708,1927.9,1927.6,6.01399]
[1742258697966,5.18708,1927.9,1927.6,6.49684536]
[1742258699898,10.37425,1927.9,1927.6,1.30905536]
[1742258700099,5.18728,1927.8,1927.6,0.48285536]
[1742258700272,5.18728,1927.8,1927.6,5.32785536]
[1742258700474,5.18678,1928.0,1927.6,4.845]
[1742258700686,5.18709,1927.9,1927.6,4.845]
[1742258701286,10.37429,1927.9,1927.6,4.845]
[1742258701480,5.18709,1927.9,1927.6,4.845]
[1742258703083,5.18709,1927.9,1927.7,0.8269]
[1742258704813,5.18709,1927.9,1927.6,4.845]
[1742258705023,5.18729,1927.8,1927.6,4.845]
[1742258705311,5.18729,1927.8,1927.6,4.843]
[1742258705489,10.37481,1927.8,1927.6,4.843]
[1742258706011,5.18729,1927.8,1927.6,5.32594542]
[1742258706176,11.412231,1927.8,1927.6,0.48294542]
[1742258706378,5.18752,1927.7,1927.6,0.48294542]
[1742258707494,5.18806,1927.5,1927.4,0.48294542]
[1742258708320,5.18785,1927.6,1927.4,0.48294542]
[1742258708811,10.37582,1927.6,1927.4,0.48294542]
[1742258709015,5.18806,1927.5,1927.4,0.48294542]
[1742258709179,5.18806,1927.5,1927.3,0.48294542]
[1742258709379,10.37634,1927.5,1927.3,0.48294542]
[1742258709816,5.18833,1927.4,1927.3,0.48294542]
[1742258710916,5.18833,1927.4,1927.1,6.28255]
[1742258711981,10.37689,1927.4,1927.1,6.28255]
[1742258712176,10.37743,1927.3,1927.1,5.45665]
[1742258712402,5.18869,1927.3,1927.1,5.45665]
[1742258712985,5.18869,1927.3,1927.1,5.93945756]
[1742258713382,6.226079,1927.4,1927.1,1.09345756]